[Event "Torneo Nuevo Centro. Jornada 8"]
[Site "Chess.com"]
[Date "2020.08.07"]
[Round "4"]
[White "Roca Cruz, Rafael"]
[Black "Conon, Catalin"]
[Result "1/2-1/2"]
[WhiteElo "1802"]
[BlackElo "1939"]
[TimeControl "180+2"]
[EndTime "11:16:10 PDT"]
[Termination "Tablas por repeticiÃ³n"]

1. d4 {[%clk 0:03:01]} 1... Nf6 {[%clk 0:03:00.3]} 2. c4 {[%clk 0:03:02]} 2...
e6 {[%clk 0:03:01.2]} 3. Nc3 {[%clk 0:03:03]} 3... d5 {[%clk 0:03:02.2]} 4. Bg5
{[%clk 0:03:03.8]} 4... Be7 {[%clk 0:03:03]} 5. cxd5 {[%clk 0:03:04.6]} 5...
exd5 {[%clk 0:03:04.9]} 6. e3 {[%clk 0:03:05.8]} 6... O-O {[%clk 0:03:06.1]} 7.
Bd3 {[%clk 0:03:06.9]} 7... h6 {[%clk 0:03:06.8]} 8. Bh4 {[%clk 0:03:07.9]} 8...
c6 {[%clk 0:03:06.7]} 9. Qc2 {[%clk 0:03:08.9]} 9... Nbd7 {[%clk 0:03:05.9]} 10.
Nge2 {[%clk 0:03:09.7]} 10... Nb6 {[%clk 0:03:05.1]} 11. O-O {[%clk 0:03:05.1]}
11... Be6 {[%clk 0:03:06]} 12. f3 {[%clk 0:03:04.2]} 12... Nc4 {[%clk
0:02:46.8]} 13. Bf2 {[%clk 0:02:58.7]} 13... c5 {[%clk 0:02:33.3]} 14. Nxd5
{[%clk 0:02:34.2]} 14... Nxd5 {[%clk 0:02:03.1]} 15. Bxc4 {[%clk 0:02:34]} 15...
Nb4 {[%clk 0:02:04.3]} 16. Qb3 {[%clk 0:02:23.9]} 16... Bxc4 {[%clk 0:02:04.3]}
17. Qxc4 {[%clk 0:02:25.1]} 17... cxd4 {[%clk 0:02:04.1]} 18. Nxd4 {[%clk
0:02:16.4]} 18... Rc8 {[%clk 0:02:04.2]} 19. Qb3 {[%clk 0:02:09.2]} 19... Qa5
{[%clk 0:01:41.1]} 20. a3 {[%clk 0:01:57.7]} 20... Nd5 {[%clk 0:01:27.3]} 21.
Qb5 {[%clk 0:01:01.5]} 21... Qxb5 {[%clk 0:01:20.5]} 22. Nxb5 {[%clk 0:01:02.6]}
22... Rc2 {[%clk 0:01:22.1]} 23. Rab1 {[%clk 0:00:59.7]} 23... Bf6 {[%clk
0:01:22.6]} 24. Nd4 {[%clk 0:00:54.7]} 24... Rd2 {[%clk 0:01:09.2]} 25. Rfd1
{[%clk 0:00:54.1]} 25... Rxd1+ {[%clk 0:01:05.9]} 26. Rxd1 {[%clk 0:00:54.3]}
26... Rc8 {[%clk 0:01:07.8]} 27. Nb5 {[%clk 0:00:15.3]} 27... a6 {[%clk
0:01:07.7]} 28. Rxd5 {[%clk 0:00:15.9]} 28... axb5 {[%clk 0:01:07.6]} 29. g4
{[%clk 0:00:15]} 29... Rc1+ {[%clk 0:01:07.7]} 30. Kg2 {[%clk 0:00:15.9]} 30...
Bxb2 {[%clk 0:01:08.3]} 31. Rxb5 {[%clk 0:00:16.9]} 31... Bxa3 {[%clk
0:01:07.8]} 32. Rxb7 {[%clk 0:00:18]} 32... Rc2 {[%clk 0:01:06.4]} 33. Kg3
{[%clk 0:00:16.4]} 33... Bd6+ {[%clk 0:01:06.2]} 34. f4 {[%clk 0:00:17.5]} 34...
Rc3 {[%clk 0:01:06.1]} 35. Kf3 {[%clk 0:00:18]} 35... Rc6 {[%clk 0:01:00.7]} 36.
h4 {[%clk 0:00:17.9]} 36... f6 {[%clk 0:00:59.2]} 37. Rd7 {[%clk 0:00:18.4]}
37... Bb4 {[%clk 0:00:54.5]} 38. h5 {[%clk 0:00:19.6]} 38... Rc4 {[%clk
0:00:36.1]} 39. Rd4 {[%clk 0:00:18.3]} 39... Rxd4 {[%clk 0:00:31.8]} 40. exd4
{[%clk 0:00:20.2]} 40... Kf7 {[%clk 0:00:33.7]} 41. Ke4 {[%clk 0:00:21.3]} 41...
Ke6 {[%clk 0:00:33.9]} 42. Be3 {[%clk 0:00:20.4]} 42... Be1 {[%clk 0:00:32.7]}
43. d5+ {[%clk 0:00:17.3]} 43... Kd6 {[%clk 0:00:33.1]} 44. Bc1 {[%clk
0:00:17.5]} 44... Bb4 {[%clk 0:00:31.3]} 45. Bb2 {[%clk 0:00:17.6]} 45... Bc5
{[%clk 0:00:21]} 46. Bc3 {[%clk 0:00:16.9]} 46... Ba3 {[%clk 0:00:21.7]} 47. Bd4
{[%clk 0:00:14.5]} 47... Bb4 {[%clk 0:00:22.4]} 48. Be3 {[%clk 0:00:14.9]} 48...
Ba3 {[%clk 0:00:18.3]} 49. Bf2 {[%clk 0:00:15]} 49... Bb4 {[%clk 0:00:18.1]} 50.
Bg3 {[%clk 0:00:16.2]} 50... Bc5 {[%clk 0:00:13.9]} 51. g5 {[%clk 0:00:16.7]}
51... Ba3 {[%clk 0:00:08.8]} 52. f5+ {[%clk 0:00:14.8]} 52... Kd7 {[%clk
0:00:09.1]} 53. gxh6 {[%clk 0:00:16]} 53... gxh6 {[%clk 0:00:09.3]} 54. Bf4
{[%clk 0:00:17.3]} 54... Bf8 {[%clk 0:00:08.2]} 55. Kd4 {[%clk 0:00:15]} 55...
Bg7 {[%clk 0:00:08.6]} 56. Kc4 {[%clk 0:00:16.1]} 56... Bf8 {[%clk 0:00:09.7]}
57. Kd4 {[%clk 0:00:16.2]} 57... Bg7 {[%clk 0:00:11]} 58. Kc5 {[%clk 0:00:17.4]}
58... Bf8+ {[%clk 0:00:12.3]} 59. d6 {[%clk 0:00:18.6]} 59... Bg7 {[%clk
0:00:12.7]} 60. Kd5 {[%clk 0:00:19.8]} 60... Bf8 {[%clk 0:00:13.9]} 61. Bd2
{[%clk 0:00:19.3]} 61... Bg7 {[%clk 0:00:10.2]} 62. Bc3 {[%clk 0:00:20.2]} 62...
Bh8 {[%clk 0:00:11.5]} 63. Bb2 {[%clk 0:00:18.3]} 63... Bg7 {[%clk 0:00:12.3]}
64. Ba3 {[%clk 0:00:19.1]} 64... Bh8 {[%clk 0:00:12.8]} 65. Ke4 {[%clk
0:00:19.9]} 65... Bg7 {[%clk 0:00:12.7]} 66. Kf4 {[%clk 0:00:20.5]} 66... Bf8
{[%clk 0:00:09]} 67. Ke4 {[%clk 0:00:18]} 67... Bg7 {[%clk 0:00:07.8]} 68. Bc1
{[%clk 0:00:18.3]} 68... Bf8 {[%clk 0:00:08.3]} 69. Kd5 {[%clk 0:00:18.1]} 69...
Bg7 {[%clk 0:00:09.3]} 70. Be3 {[%clk 0:00:18.3]} 70... Bf8 {[%clk 0:00:09.9]}
71. Bd4 {[%clk 0:00:18.8]} 71... Bg7 {[%clk 0:00:10.9]} 72. Bc3 {[%clk
0:00:19.6]} 72... Bh8 {[%clk 0:00:12]} 73. Bd2 {[%clk 0:00:17.7]} 73... Bg7
{[%clk 0:00:12.7]} 74. Bf4 {[%clk 0:00:18.8]} 74... Bf8 {[%clk 0:00:12.3]} 75.
Bg3 {[%clk 0:00:16.9]} 75... Bg7 {[%clk 0:00:12.2]} 76. Bf2 {[%clk 0:00:17.5]}
76... Bf8 {[%clk 0:00:12.5]} 77. Be3 {[%clk 0:00:18.6]} 77... Bg7 {[%clk
0:00:11.8]} 78. Bb6 {[%clk 0:00:18.2]} 78... Bf8 {[%clk 0:00:07.6]} 79. Bc7
{[%clk 0:00:18.6]} 79... Bg7 {[%clk 0:00:08.8]} 80. Bb8 {[%clk 0:00:19.6]} 80...
Bf8 {[%clk 0:00:09.6]} 81. Bc7 {[%clk 0:00:19.3]} 81... Bg7 {[%clk 0:00:10.5]}
82. Bb6 {[%clk 0:00:20.6]} 82... Bf8 {[%clk 0:00:08.6]} 83. Bd4 {[%clk
0:00:21.1]} 83... Bg7 {[%clk 0:00:09]} 84. Kc5 {[%clk 0:00:19.5]} 84... Bh8
{[%clk 0:00:08.8]} 85. Kd5 {[%clk 0:00:20.3]} 85... Bg7 {[%clk 0:00:09.9]}
1/2-1

[Event "Torneo Nuevo Centro. Jornada 8"]
[Site "Chess.com"]
[Date "2020.08.07"]
[Round "5"]
[White "Miranda Calvo, Max Rodrigo"]
[Black "Fitzpatrick Dimas, Kevin"]
[Result "1-0"]
[WhiteElo "1348"]
[BlackElo "897"]
[TimeControl "180+2"]
[EndTime "11:18:36 PDT"]
[Termination "Victoria de bas-max-miranda por jaque mate"]

1. e4 {[%clk 0:02:57.6]} 1... e5 {[%clk 0:02:59.9]} 2. Nf3 {[%clk 0:02:57.8]}
2... Nc6 {[%clk 0:02:59.3]} 3. Bc4 {[%clk 0:02:58.2]} 3... Bd6 {[%clk
0:02:58.2]} 4. d3 {[%clk 0:02:55.5]} 4... Bc5 {[%clk 0:02:54.6]} 5. Ng5 {[%clk
0:02:37.7]} 5... Nh6 {[%clk 0:02:46.5]} 6. Nf3 {[%clk 0:02:34.4]} 6... d6 {[%clk
0:02:39.7]} 7. Bxh6 {[%clk 0:02:29.4]} 7... gxh6 {[%clk 0:02:37.8]} 8. Nbd2
{[%clk 0:02:27.1]} 8... Bg4 {[%clk 0:02:37]} 9. h3 {[%clk 0:02:15.9]} 9... Bxf3
{[%clk 0:02:35.4]} 10. Qxf3 {[%clk 0:02:14.3]} 10... Nd4 {[%clk 0:02:30.3]} 11.
Qxf7# {[%clk 0:02:09.1]} 1

[Event "Torneo Nuevo Centro. Jornada 8"]
[Site "Chess.com"]
[Date "2020.08.07"]
[Round "5"]
[White "Vicent Lázaro, Elena"]
[Black "Serrano Requena, Guillem"]
[Result "0-1"]
[WhiteElo "671"]
[BlackElo "1320"]
[TimeControl "180+2"]
[EndTime "11:19:11 PDT"]
[Termination "Victoria de Guily351 por abandono"]

1. e3 {[%clk 0:03:01.9]} 1... d5 {[%clk 0:02:55.9]} 2. c4 {[%clk 0:02:52.5]}
2... c6 {[%clk 0:02:55.6]} 3. Nc3 {[%clk 0:02:49.2]} 3... Nf6 {[%clk 0:02:52.8]}
4. Bd3 {[%clk 0:02:48.5]} 4... e6 {[%clk 0:02:41.8]} 5. Bb1 {[%clk 0:02:50.4]}
5... Bb4 {[%clk 0:02:37.6]} 6. cxd5 {[%clk 0:02:49]} 6... cxd5 {[%clk
0:02:37.4]} 7. Qa4+ {[%clk 0:02:46.2]} 7... Nc6 {[%clk 0:02:38.1]} 8. Qc2 {[%clk
0:02:44.3]} 8... a6 {[%clk 0:02:34.2]} 9. Nf3 {[%clk 0:02:42.7]} 9... O-O {[%clk
0:02:27.8]} 10. g4 {[%clk 0:02:35.5]} 10... g6 {[%clk 0:02:20.9]} 11. Ng5 {[%clk
0:02:31.2]} 11... Nxg4 {[%clk 0:02:17.9]} 12. Qd1 {[%clk 0:02:30.9]} 12... Qxg5
{[%clk 0:02:16.2]} 13. f3 {[%clk 0:02:30.3]} 13... Nxh2 {[%clk 0:02:14.2]} 14.
Rxh2 {[%clk 0:02:30.5]} 14... Qg1+ {[%clk 0:02:13.6]} 15. Ke2 {[%clk 0:02:30.6]}
15... Qxh2+ {[%clk 0:02:14]} 0

[Event "Torneo Nuevo Centro. Jornada 8"]
[Site "Chess.com"]
[Date "2020.08.07"]
[Round "5"]
[White "Conon, Catalin"]
[Black "Gimenez Saiz, Jose Raul"]
[Result "0-1"]
[WhiteElo "1927"]
[BlackElo "1740"]
[TimeControl "180+2"]
[EndTime "11:22:02 PDT"]
[Termination "Victoria de rango013 por jaque mate"]

1. e4 {[%clk 0:03:01.9]} 1... d5 {[%clk 0:02:59.9]} 2. exd5 {[%clk 0:02:30.8]}
2... Nf6 {[%clk 0:02:59.6]} 3. c4 {[%clk 0:02:29.6]} 3... c6 {[%clk 0:02:56.7]}
4. dxc6 {[%clk 0:02:30.1]} 4... Nxc6 {[%clk 0:02:57.7]} 5. Nf3 {[%clk 0:02:07]}
5... Bg4 {[%clk 0:02:55.3]} 6. Be2 {[%clk 0:02:07.2]} 6... e5 {[%clk 0:02:55.3]}
7. d3 {[%clk 0:02:06.1]} 7... Bb4+ {[%clk 0:02:52.6]} 8. Nc3 {[%clk 0:02:05.4]}
8... e4 {[%clk 0:02:36.6]} 9. dxe4 {[%clk 0:01:36.8]} 9... Nxe4 {[%clk
0:02:34.9]} 10. O-O {[%clk 0:01:37.7]} 10... Nxc3 {[%clk 0:02:30.1]} 11. bxc3
{[%clk 0:01:39.6]} 11... Bxc3 {[%clk 0:02:30.6]} 12. Rb1 {[%clk 0:01:40.7]}
12... O-O {[%clk 0:02:27.2]} 13. Qc2 {[%clk 0:01:41]} 13... Bf6 {[%clk
0:02:27.2]} 14. Bf4 {[%clk 0:01:36.1]} 14... Re8 {[%clk 0:02:19.1]} 15. Rxb7
{[%clk 0:01:31]} 15... Rc8 {[%clk 0:01:52.7]} 16. Rd1 {[%clk 0:01:29.6]} 16...
Qa5 {[%clk 0:01:48.2]} 17. Rbb1 {[%clk 0:01:26.7]} 17... Bf5 {[%clk 0:01:41]}
18. Bd3 {[%clk 0:01:26.1]} 18... Nb4 {[%clk 0:01:34.4]} 19. Qc3 {[%clk 0:01:26]}
19... Bxc3 {[%clk 0:01:33.5]} 20. Bxf5 {[%clk 0:01:25.1]} 20... Qxf5 {[%clk
0:01:28.5]} 21. Be3 {[%clk 0:01:22.1]} 21... h6 {[%clk 0:01:22.1]} 22. Rbc1
{[%clk 0:01:19.8]} 22... Nxa2 {[%clk 0:01:19.6]} 23. Rb1 {[%clk 0:01:18]} 23...
a5 {[%clk 0:01:08]} 24. Rd5 {[%clk 0:01:18.2]} 24... Qxb1+ {[%clk 0:01:06.6]}
25. Rd1 {[%clk 0:01:17.9]} 25... Qxd1+ {[%clk 0:01:05.8]} 26. Ne1 {[%clk
0:01:18.3]} 26... Qxe1# {[%clk 0:01:05.9]} 0

[Event "Torneo Nuevo Centro. Jornada 8"]
[Site "Chess.com"]
[Date "2020.08.07"]
[Round "5"]
[White "Perrot, Fabien "]
[Black "Donate Peris, Jose Manuel"]
[Result "0-1"]
[WhiteElo "1015"]
[BlackElo "1527"]
[TimeControl "180+2"]
[EndTime "11:22:41 PDT"]
[Termination "Victoria de cheryme por abandono"]

1. d4 {[%clk 0:02:54.9]} 1... Nf6 {[%clk 0:02:59.4]} 2. c4 {[%clk 0:02:55.2]}
2... d5 {[%clk 0:02:58.4]} 3. Bg5 {[%clk 0:02:48.3]} 3... dxc4 {[%clk
0:02:57.8]} 4. Bxf6 {[%clk 0:02:45.6]} 4... exf6 {[%clk 0:02:58]} 5. e4 {[%clk
0:02:46.8]} 5... Bb4+ {[%clk 0:02:57]} 6. Nc3 {[%clk 0:02:47.1]} 6... b5 {[%clk
0:02:49.6]} 7. a3 {[%clk 0:02:41.7]} 7... Ba5 {[%clk 0:02:49.3]} 8. b4 {[%clk
0:02:39.1]} 8... cxb3 {[%clk 0:02:49.2]} 9. Qxb3 {[%clk 0:02:34.4]} 9... Qxd4
{[%clk 0:02:40.9]} 10. Rc1 {[%clk 0:02:00.1]} 10... a6 {[%clk 0:02:31.5]} 11.
Be2 {[%clk 0:01:45.6]} 11... O-O {[%clk 0:02:16.5]} 12. f3 {[%clk 0:01:41.5]}
12... Be6 {[%clk 0:02:13.7]} 13. Qc2 {[%clk 0:01:37.8]} 13... c5 {[%clk
0:02:05.9]} 14. Bf1 {[%clk 0:01:38.3]} 14... Qe3+ {[%clk 0:02:02.6]} 15. Ne2
{[%clk 0:01:32.2]} 15... Bc4 {[%clk 0:01:50.4]} 16. h4 {[%clk 0:00:35.5]} 16...
Nc6 {[%clk 0:01:44.7]} 17. Rh3 {[%clk 0:00:31]} 17... Nd4 {[%clk 0:01:41.9]} 18.
Qb2 {[%clk 0:00:11.9]} 18... Nxe2 {[%clk 0:01:35.7]} 19. Bxe2 {[%clk 0:00:12.7]}
19... Bxe2 {[%clk 0:01:30.3]} 20. Qxe2 {[%clk 0:00:09.1]} 20... Qxc1+ {[%clk
0:01:30]} 21. Qd1 {[%clk 0:00:06.6]} 21... Bxc3+ {[%clk 0:01:26.5]} 22. Kf2
{[%clk 0:00:07.9]} 22... Qxd1 {[%clk 0:01:26.6]} 0

[Event "Torneo Nuevo Centro. Jornada 8"]
[Site "Chess.com"]
[Date "2020.08.07"]
[Round "5"]
[White "Pardo Ruiz, Carlos"]
[Black "Ainsa Jimenez, Lucas"]
[Result "1-0"]
[WhiteElo "1676"]
[BlackElo "1070"]
[TimeControl "180+2"]
[EndTime "11:22:42 PDT"]
[Termination "Victoria de Carlitoscarlsen por tiempo"]

1. e4 {[%clk 0:03:01.9]} 1... e5 {[%clk 0:02:59.8]} 2. Nf3 {[%clk 0:03:02.4]}
2... Nc6 {[%clk 0:02:56.5]} 3. Bc4 {[%clk 0:03:02.7]} 3... Bc5 {[%clk
0:02:56.4]} 4. c3 {[%clk 0:03:01.9]} 4... h6 {[%clk 0:02:54.2]} 5. d4 {[%clk
0:03:02.2]} 5... exd4 {[%clk 0:02:54.3]} 6. cxd4 {[%clk 0:03:04.1]} 6... Bb6
{[%clk 0:02:46.9]} 7. O-O {[%clk 0:03:03.9]} 7... Nf6 {[%clk 0:02:40.4]} 8. e5
{[%clk 0:03:02.6]} 8... Nh7 {[%clk 0:02:04.1]} 9. d5 {[%clk 0:03:00.8]} 9... Na5
{[%clk 0:01:59.4]} 10. Bd3 {[%clk 0:02:59.4]} 10... d6 {[%clk 0:01:56.4]} 11.
Re1 {[%clk 0:02:56.4]} 11... O-O {[%clk 0:01:53.9]} 12. exd6 {[%clk 0:02:52]}
12... Qxd6 {[%clk 0:01:49.7]} 13. h3 {[%clk 0:02:48.7]} 13... Qxd5 {[%clk
0:01:42.3]} 14. Bxh7+ {[%clk 0:02:48.6]} 14... Kxh7 {[%clk 0:01:35.4]} 15. Qxd5
{[%clk 0:02:50.5]} 15... Nc6 {[%clk 0:01:29.7]} 16. Nc3 {[%clk 0:02:46.1]} 16...
Nb4 {[%clk 0:01:23.3]} 17. Qe4+ {[%clk 0:02:46.1]} 17... Kg8 {[%clk 0:01:19]}
18. Qxb4 {[%clk 0:02:46.4]} 18... a5 {[%clk 0:01:13.7]} 19. Qh4 {[%clk
0:02:46.1]} 19... Be6 {[%clk 0:01:08.5]} 20. Bxh6 {[%clk 0:02:36]} 20... gxh6
{[%clk 0:00:56.3]} 21. Qxh6 {[%clk 0:02:37.9]} 21... Bf5 {[%clk 0:00:49.6]} 22.
Ng5 {[%clk 0:02:25.3]} 22... Bg6 {[%clk 0:00:45]} 23. Re6 {[%clk 0:02:10.9]}
23... Bf5 {[%clk 0:00:27.9]} 24. Rf6 {[%clk 0:01:56.5]} 24... Bd3 {[%clk
0:00:09.4]} 25. Nce4 {[%clk 0:01:55.5]} 1

[Event "Torneo Nuevo Centro. Jornada 8"]
[Site "Chess.com"]
[Date "2020.08.07"]
[Round "5"]
[White "Blanco Solaz, Ramón"]
[Black "Montesinos Diaz, Luis"]
[Result "0-1"]
[WhiteElo "1961"]
[BlackElo "1862"]
[TimeControl "180+2"]
[EndTime "11:23:33 PDT"]
[Termination "Victoria de Gwiso_06 por jaque mate"]

1. g3 {[%clk 0:03:01.9]} 1... d5 {[%clk 0:02:55.7]} 2. c4 {[%clk 0:03:02.8]}
2... c6 {[%clk 0:02:49.3]} 3. Bg2 {[%clk 0:03:03.9]} 3... Nf6 {[%clk 0:02:48.6]}
4. Nf3 {[%clk 0:03:05]} 4... Bg4 {[%clk 0:02:49.4]} 5. O-O {[%clk 0:03:06.1]}
5... e6 {[%clk 0:02:50.2]} 6. b3 {[%clk 0:03:07.3]} 6... Bd6 {[%clk 0:02:50.9]}
7. Bb2 {[%clk 0:03:08.4]} 7... Nbd7 {[%clk 0:02:52.1]} 8. d4 {[%clk 0:03:09.5]}
8... O-O {[%clk 0:02:51.5]} 9. Qc2 {[%clk 0:03:10.7]} 9... Bf5 {[%clk 0:02:51]}
10. Qc1 {[%clk 0:03:08.9]} 10... h6 {[%clk 0:02:48.4]} 11. Rd1 {[%clk
0:03:09.6]} 11... Rc8 {[%clk 0:02:46.2]} 12. Nbd2 {[%clk 0:03:06]} 12... Re8
{[%clk 0:02:43.2]} 13. Ne5 {[%clk 0:03:04.5]} 13... Ne4 {[%clk 0:02:31.5]} 14.
Nxe4 {[%clk 0:03:02.1]} 14... Bxe4 {[%clk 0:02:30.3]} 15. f3 {[%clk 0:03:03.6]}
15... Bh7 {[%clk 0:02:30]} 16. e4 {[%clk 0:03:04.2]} 16... dxe4 {[%clk 0:02:31]}
17. fxe4 {[%clk 0:03:05.1]} 17... f6 {[%clk 0:02:29.9]} 18. Nd3 {[%clk
0:02:50.2]} 18... Qe7 {[%clk 0:02:09]} 19. c5 {[%clk 0:02:49.4]} 19... Bb8
{[%clk 0:02:08.4]} 20. b4 {[%clk 0:02:50.6]} 20... e5 {[%clk 0:02:07]} 21. d5
{[%clk 0:02:46]} 21... cxd5 {[%clk 0:02:06.7]} 22. exd5 {[%clk 0:02:47.9]} 22...
e4 {[%clk 0:01:31.2]} 23. Nf4 {[%clk 0:02:48.7]} 23... g5 {[%clk 0:01:27.9]} 24.
Ne6 {[%clk 0:02:47.6]} 24... Bf5 {[%clk 0:01:27.7]} 25. Nd4 {[%clk 0:02:45.8]}
25... Bg6 {[%clk 0:01:25.2]} 26. Re1 {[%clk 0:02:43]} 26... f5 {[%clk
0:01:24.6]} 27. Qe3 {[%clk 0:02:34.5]} 27... Ne5 {[%clk 0:01:21.8]} 28. Qc3
{[%clk 0:02:34]} 28... b6 {[%clk 0:01:10.3]} 29. d6 {[%clk 0:02:32.8]} 29...
Bxd6 {[%clk 0:01:08.8]} 30. cxd6 {[%clk 0:02:32.6]} 30... Qxd6 {[%clk
0:00:59.3]} 31. Qb3+ {[%clk 0:02:33.1]} 31... Bf7 {[%clk 0:00:57.9]} 32. Rad1
{[%clk 0:02:33.2]} 32... Bxb3 {[%clk 0:00:56.7]} 33. Nxb3 {[%clk 0:02:34.9]}
33... Qe6 {[%clk 0:00:53.1]} 34. Nd4 {[%clk 0:02:29.8]} 34... Qxa2 {[%clk
0:00:52.8]} 35. Re2 {[%clk 0:02:26.2]} 35... Nd3 {[%clk 0:00:43.9]} 36. Ba1
{[%clk 0:02:22.9]} 36... Qa4 {[%clk 0:00:38.9]} 37. Rf1 {[%clk 0:02:19.2]} 37...
Qxb4 {[%clk 0:00:31.4]} 38. Nxf5 {[%clk 0:02:20.3]} 38... Rc1 {[%clk 0:00:28.2]}
39. Nxh6+ {[%clk 0:02:21.1]} 39... Kh7 {[%clk 0:00:27.2]} 40. Ng4 {[%clk
0:02:15.5]} 40... Rxf1+ {[%clk 0:00:27.4]} 41. Bxf1 {[%clk 0:02:17.4]} 41... Rf8
{[%clk 0:00:26]} 42. Nf6+ {[%clk 0:02:17.3]} 42... Kg6 {[%clk 0:00:26.7]} 43.
Rxe4 {[%clk 0:02:15.9]} 43... Qb1 {[%clk 0:00:25.2]} 44. Bd4 {[%clk 0:02:13.8]}
44... Nc5 {[%clk 0:00:17.5]} 45. Bxc5 {[%clk 0:02:09.8]} 45... Rxf6 {[%clk
0:00:16.6]} 46. Rb4 {[%clk 0:02:05.2]} 46... Qxf1# {[%clk 0:00:16.7]} 0

[Event "Torneo Nuevo Centro. Jornada 8"]
[Site "Chess.com"]
[Date "2020.08.07"]
[Round "5"]
[White "Kovacevic, Slobodan"]
[Black "Rodriguez Rodriguez, Joan David "]
[Result "1-0"]
[WhiteElo "2228"]
[BlackElo "1714"]
[TimeControl "180+2"]
[EndTime "11:23:57 PDT"]
[Termination "Victoria de nikko110 por tiempo"]

1. d4 {[%clk 0:03:01.9]} 1... d5 {[%clk 0:03:00.2]} 2. Bf4 {[%clk 0:03:01.1]}
2... h5 {[%clk 0:03:00.6]} 3. h3 {[%clk 0:02:59.8]} 3... Nf6 {[%clk 0:02:55.5]}
4. e3 {[%clk 0:02:58.9]} 4... c5 {[%clk 0:02:45.9]} 5. c3 {[%clk 0:02:58.3]}
5... Nc6 {[%clk 0:02:46.3]} 6. Nd2 {[%clk 0:02:53.6]} 6... Bf5 {[%clk
0:02:43.1]} 7. Qb3 {[%clk 0:02:51.4]} 7... Qb6 {[%clk 0:02:37.9]} 8. dxc5 {[%clk
0:02:50.4]} 8... Qxb3 {[%clk 0:02:24]} 9. axb3 {[%clk 0:02:46]} 9... e6 {[%clk
0:02:23.1]} 10. b4 {[%clk 0:02:44.1]} 10... a6 {[%clk 0:02:23.7]} 11. Ngf3
{[%clk 0:02:41.4]} 11... Be7 {[%clk 0:02:22.8]} 12. b5 {[%clk 0:02:35.9]} 12...
Nd8 {[%clk 0:02:17.9]} 13. b4 {[%clk 0:02:31.2]} 13... O-O {[%clk 0:02:17.3]}
14. bxa6 {[%clk 0:02:29.3]} 14... bxa6 {[%clk 0:02:16.9]} 15. Rxa6 {[%clk
0:02:16.4]} 15... Rc8 {[%clk 0:01:39]} 16. Be2 {[%clk 0:02:07.1]} 16... Ne4
{[%clk 0:01:31.9]} 17. Nxe4 {[%clk 0:02:05.7]} 17... Bxe4 {[%clk 0:01:33.8]} 18.
O-O {[%clk 0:02:04.5]} 18... Nc6 {[%clk 0:01:23.4]} 19. Nd4 {[%clk 0:01:57.9]}
19... Nd8 {[%clk 0:01:04.7]} 20. Rfa1 {[%clk 0:01:53]} 20... f6 {[%clk
0:00:50.5]} 21. Bh2 {[%clk 0:01:39.9]} 21... e5 {[%clk 0:00:46.8]} 22. Nb5
{[%clk 0:01:37.6]} 22... Bf5 {[%clk 0:00:36.5]} 23. Bxh5 {[%clk 0:01:23.5]}
23... Nc6 {[%clk 0:00:23]} 24. Bg3 {[%clk 0:01:11.8]} 24... Bd3 {[%clk
0:00:23.1]} 25. Rb6 {[%clk 0:01:09.4]} 25... Rb8 {[%clk 0:00:10]} 26. Rxb8
{[%clk 0:01:03]} 26... Rxb8 {[%clk 0:00:11.5]} 27. Nc7 {[%clk 0:01:02.9]} 27...
Rd8 {[%clk 0:00:06.2]} 28. Bf3 {[%clk 0:00:51.5]} 28... e4 {[%clk 0:00:04.8]}
29. Bg4 {[%clk 0:00:50.9]} 29... g6 {[%clk 0:00:03.9]} 30. Be6+ {[%clk
0:00:49.5]} 30... Kg7 {[%clk 0:00:04.8]} 31. Bxd5 {[%clk 0:00:47.7]} 1

[Event "Torneo Nuevo Centro. Jornada 8"]
[Site "Chess.com"]
[Date "2020.08.07"]
[Round "5"]
[White "Zamora Soler, Raul"]
[Black "Carbonell Bofill, Carlos Eloy"]
[Result "0-1"]
[WhiteElo "1876"]
[BlackElo "1954"]
[TimeControl "180+2"]
[EndTime "11:24:23 PDT"]
[Termination "Victoria de MFCARLOS por jaque mate"]

1. Nf3 {[%clk 0:03:01.9]} 1... d5 {[%clk 0:02:37.6]} 2. d4 {[%clk 0:03:02.4]}
2... c6 {[%clk 0:02:37.8]} 3. e3 {[%clk 0:03:03.1]} 3... Bf5 {[%clk 0:02:37.1]}
4. b3 {[%clk 0:03:03.9]} 4... Nd7 {[%clk 0:02:35.4]} 5. Bb2 {[%clk 0:03:04.5]}
5... h6 {[%clk 0:02:33]} 6. Nbd2 {[%clk 0:03:05.3]} 6... Ngf6 {[%clk 0:02:24.4]}
7. c4 {[%clk 0:03:02.7]} 7... e6 {[%clk 0:02:23.3]} 8. Be2 {[%clk 0:03:03.2]}
8... Bd6 {[%clk 0:02:19.8]} 9. h3 {[%clk 0:03:02.6]} 9... Qe7 {[%clk 0:02:15.7]}
10. c5 {[%clk 0:03:02.8]} 10... Bc7 {[%clk 0:02:16.2]} 11. b4 {[%clk 0:03:04]}
11... e5 {[%clk 0:02:07.6]} 12. dxe5 {[%clk 0:03:04.5]} 12... Nxe5 {[%clk
0:02:09.5]} 13. Nxe5 {[%clk 0:03:04.6]} 13... Bxe5 {[%clk 0:02:11.4]} 14. Bxe5
{[%clk 0:03:01.1]} 14... Qxe5 {[%clk 0:02:13.3]} 15. O-O {[%clk 0:02:59.4]}
15... a6 {[%clk 0:02:00]} 16. Nf3 {[%clk 0:02:58.4]} 16... Qc3 {[%clk
0:01:58.9]} 17. Qd2 {[%clk 0:02:39.9]} 17... Ne4 {[%clk 0:01:55.4]} 18. Qxc3
{[%clk 0:02:33.9]} 18... Nxc3 {[%clk 0:01:57.3]} 19. Rfe1 {[%clk 0:02:32]} 19...
Nxe2+ {[%clk 0:01:29]} 20. Rxe2 {[%clk 0:02:32.6]} 20... a5 {[%clk 0:01:28.7]}
21. Nd4 {[%clk 0:02:33.1]} 21... Bd3 {[%clk 0:01:23.6]} 22. Rd2 {[%clk
0:02:33.7]} 22... Bc4 {[%clk 0:01:20.7]} 23. bxa5 {[%clk 0:02:34.6]} 23... Rxa5
{[%clk 0:01:20.8]} 24. Nf5 {[%clk 0:02:31.6]} 24... Rxc5 {[%clk 0:00:44.7]} 25.
Nxg7+ {[%clk 0:02:29.2]} 25... Kd7 {[%clk 0:00:45.6]} 26. Nf5 {[%clk 0:02:24.6]}
26... Ra5 {[%clk 0:00:33.7]} 27. e4 {[%clk 0:02:21.1]} 27... Kc7 {[%clk
0:00:21.8]} 28. exd5 {[%clk 0:02:21.4]} 28... Bxd5 {[%clk 0:00:18.7]} 29. Ne3
{[%clk 0:02:17]} 29... Be6 {[%clk 0:00:18.6]} 30. a3 {[%clk 0:02:10]} 30... Rha8
{[%clk 0:00:18.8]} 31. Rd3 {[%clk 0:02:10.1]} 31... b5 {[%clk 0:00:18.8]} 32.
Nc2 {[%clk 0:02:07.7]} 32... c5 {[%clk 0:00:18.9]} 33. Rc3 {[%clk 0:02:07.1]}
33... Kb6 {[%clk 0:00:19.2]} 34. Rb1 {[%clk 0:01:58.9]} 34... Ka6 {[%clk
0:00:10.9]} 35. Rxc5 {[%clk 0:01:57.5]} 35... Kb6 {[%clk 0:00:09.6]} 36. Re5
{[%clk 0:01:46.9]} 36... Bc4 {[%clk 0:00:05.4]} 37. Ne3 {[%clk 0:01:39.6]} 37...
Kc6 {[%clk 0:00:06.2]} 38. Nxc4 {[%clk 0:01:40.2]} 38... bxc4 {[%clk 0:00:08.1]}
39. Rxa5 {[%clk 0:01:37.2]} 39... Rxa5 {[%clk 0:00:10]} 40. Rb4 {[%clk
0:01:34.7]} 40... Kc5 {[%clk 0:00:07.8]} 41. Rb7 {[%clk 0:01:35.6]} 41... Rxa3
{[%clk 0:00:07.7]} 42. Rxf7 {[%clk 0:01:36.9]} 42... Ra6 {[%clk 0:00:04.2]} 43.
Rf5+ {[%clk 0:01:35]} 43... Kd4 {[%clk 0:00:04]} 44. Rf8 {[%clk 0:01:33.5]}
44... c3 {[%clk 0:00:04.6]} 45. Rc8 {[%clk 0:01:32.6]} 45... Kd3 {[%clk
0:00:03.6]} 46. Kf1 {[%clk 0:01:33.6]} 46... Ra1# {[%clk 0:00:03.2]} 0